bitfinex/quotes_ETHUSD_20260207
["timestamp","ask_amount","ask_price","bid_price","bid_amount"]
[1770449908786,0.1024,2019.7,2018.3,0.259]
[1770449909363,0.05588493,2020.4,2018.4,1.23860483]
[1770449909364,6.60921337,2020.1,2018.4,1.23860483]
[1770449909698,0.2335703,2019.8,2018.5,1.29870964]
[1770449909859,0.2335703,2019.8,2018.4,1.23860483]
[1770449910274,6.74038367,2019.8,2018.3,1.49762707]
[1770449910469,0.05588493,2019.7,2018.3,1.49762707]
[1770449910689,6.74038367,2019.8,2018.3,1.49762707]
[1770449911390,1.23780759,2019.7,2018.3,1.49762707]
[1770449911693,1.29294216,2019.6,2018.4,0.64525239]
[1770449912284,1.15592537,2020.0,2018.5,6.53507226]
[1770449912474,1.2375953,2020.1,2018.7,0.05588493]
[1770449913172,1.23947508,2020.3,2018.7,6.59095719]
[1770449913490,0.002,2020.3,2018.8,1.23835942]
[1770449913891,6.50881337,2020.3,2018.8,1.23835942]
[1770449914189,6.50881337,2020.3,2018.4,0.64525239]
[1770449914190,16.84032424,2019.8,2018.4,0.64525239]
[1770449914388,1.78643242,2019.7,2018.6,1.23847491]
[1770449914588,0.15828493,2019.7,2018.5,1.23850089]
[1770449914788,0.1024,2019.7,2018.5,1.23853779]
[1770449914988,0.1024,2019.7,2018.6,1.23847505]
[1770449915203,0.1024,2019.7,2018.6,1.23844203]
[1770449915423,1.23786888,2019.6,2018.1,4.955101]
[1770449915573,0.62917444,2019.5,2018.2,1.27289622]
[1770449915903,0.62917444,2019.5,2018.1,4.955101]
[1770449916106,0.62917444,2019.5,2018.1,1.23878895]
[1770449916275,0.62917444,2019.5,2018.7,0.001]
[1770449916471,6.52623543,2019.4,2017.8,4.95571185]
[1770449916675,6.52623543,2019.4,2018.0,1.23884021]
[1770449916977,7.00840612,2019.3,2018.5,0.001]
[1770449917164,0.71574099,2019.3,2018.5,0.001]
[1770449917368,1.86913881,2019.5,2018.5,0.001]
[1770449918297,0.63117444,2019.5,2018.5,0.001]
[1770449918508,0.002,2019.5,2018.6,6.14558712]
[1770449918875,1.23994984,2019.5,2018.5,0.001]
[1770449919383,2.24520952,2019.4,2018.5,0.001]
[1770449919575,1.00719845,2019.3,2018.5,0.001]
[1770449921372,1.23817542,2019.1,2018.5,0.001]
[1770449921598,1.72700601,2019.0,2018.5,0.001]
[1770449921801,1.00719845,2018.9,2018.5,0.001]
[1770449922108,0.71980756,2019.0,2018.5,0.001]
[1770449922273,1.2381227,2019.2,2018.5,0.001]
[1770449922475,1.00905235,2019.1,2018.5,0.001]
[1770449922700,1.00905235,2019.0,2018.5,0.001]
[1770449922870,1.23807965,2019.3,2018.5,0.001]
[1770449923066,1.00910151,2019.2,2018.5,0.001]
[1770449923271,1.00910151,2019.1,2018.5,0.001]
[1770449923601,5.05390272,2019.6,2018.5,0.001]
[1770449923811,1.00916997,2019.4,2018.5,0.001]
[1770449923986,1.00916997,2019.3,2018.5,0.001]
[1770449924306,1.00916997,2019.2,2018.5,0.001]
[1770449924476,1.00916997,2019.1,2018.5,0.001]
[1770449924672,1.00916997,2019.0,2018.5,0.001]
[1770449924981,7.5535088,2019.5,2018.5,0.001]
[1770449925182,2.27034289,2019.4,2018.5,0.001]
[1770449925384,1.00960174,2019.3,2018.5,0.001]
[1770449925591,2.24775913,2019.2,2018.5,0.001]
[1770449925792,1.00960174,2019.1,2018.5,0.001]
[1770449927771,2.24780234,2019.1,2018.5,0.001]
[1770449927998,1.72963188,2019.0,2018.0,1.23884664]
[1770449928202,1.00960174,2018.9,2017.9,1.23887833]
[1770449928410,1.00960174,2018.8,2018.0,1.23883489]
[1770449928585,0.72003014,2019.0,2018.0,1.23883489]
[1770449928903,1.01030369,2018.9,2018.1,0.6194461]
[1770449929104,0.72003014,2019.0,2018.1,0.6194461]
[1770449929401,1.0103328,2018.9,2018.7,0.001]
[1770449930587,1.23818622,2019.1,2018.7,0.001]
[1770449930789,1.01185702,2019.0,2018.7,0.001]
[1770449930986,1.01185702,2018.9,2018.7,0.001]
[1770449931195,1.23996937,2019.5,2018.7,0.001]
[1770449931395,0.002,2019.7,2018.7,6.09070219]
[1770449931601,1.01233008,2019.6,2018.8,0.60907022]
[1770449931906,0.002,2019.7,2018.8,6.75465734]
[1770449932093,0.002,2019.7,2018.9,1.23829808]
[1770449933605,0.002,2019.7,2018.8,0.60907022]
[1770449933913,1.01067979,2019.6,2018.8,1.23835691]
[1770449934202,0.002,2019.7,2018.7,0.001]
[1770449934405,1.01139497,2019.6,2018.7,0.001]
[1770449934601,0.002,2019.7,2018.7,0.001]
[1770449934602,1.01139497,2019.5,2018.7,0.001]
[1770449934806,0.002,2019.7,2018.7,0.001]
[1770449935011,1.0119049,2019.6,2018.7,0.001]
[1770449935306,1.0119049,2019.5,2018.7,0.001]
[1770449935478,1.0119049,2019.4,2018.7,0.001]
[1770449935677,0.002,2019.7,2018.7,0.001]
[1770449935678,1.0119049,2019.3,2018.7,0.001]
[1770449935905,0.002,2019.7,2018.7,0.001]
[1770449936212,1.01264069,2019.6,2018.7,0.001]
[1770449936408,1.01264069,2019.5,2018.7,6.09070219]
[1770449936701,1.01264069,2019.4,2018.8,0.60907022]
[1770449936914,0.002,2019.7,2018.8,0.60907022]
[1770449937115,1.01431668,2019.6,2018.7,6.09070219]
[1770449937316,0.002,2019.7,2018.7,6.09070219]
[1770449937516,1.01443087,2019.6,2018.7,6.09070219]
[1770449937820,0.002,2019.7,2018.7,6.09070219]
[1770449938021,1.01459311,2019.6,2018.8,0.60907022]
[1770449938188,0.002,2019.7,2018.9,1.23829808]
[1770449940436,1.01428037,2019.6,2018.7,1.23938742]
[1770449940597,1.01428037,2019.5,2018.7,1.23942075]
[1770449940920,0.002,2019.7,2018.7,0.001]
[1770449941134,1.01375586,2019.6,2018.7,0.001]
[1770449941443,1.01375586,2019.5,2018.7,0.001]
[1770449941606,1.01375586,2019.4,2018.7,0.001]
[1770449941929,1.01375586,2019.3,2018.9,0.001]
[1770449942094,1.01375586,2019.2,2018.9,0.001]
[1770449942422,1.01375586,2019.1,2018.9,0.001]
[1770449942607,1.23809838,2019.3,2018.9,0.001]
[1770449942806,1.63213111,2019.2,2018.9,0.001]
[1770449943008,1.01311557,2019.1,2018.9,0.001]
[1770449943217,0.61901554,2019.2,2018.9,0.001]
[1770449943519,1.0130685,2019.1,2018.7,0.001]
[1770449943724,0.61901554,2019.2,2018.7,0.001]
[1770449943725,1.0130685,2019.0,2018.7,0.001]
[1770449943926,1.0130685,2018.9,2018.7,0.001]
[1770449944094,0.61901554,2019.2,2018.7,0.001]
[1770449944095,1.0130685,2018.8,2018.7,0.001]
[1770449944297,1.23829808,2018.9,2018.5,0.001]
[1770449944497,1.63219716,2018.8,2017.7,4.95611237]
[1770449944725,1.0130685,2018.7,2017.7,4.95611237]
[1770449945027,0.61912866,2018.8,2017.7,4.95611237]
[1770449945226,1.01307689,2018.7,2017.7,4.95611237]
[1770449945433,0.61912866,2018.8,2017.7,4.95611237]
[1770449945618,1.01302745,2018.7,2017.8,1.22858491]
[1770449945800,0.61912866,2018.8,2017.8,1.22858491]
[1770449945996,0.002,2019.5,2018.2,6.1664737]
[1770449946198,6.8086519,2019.4,2017.8,7.39505861]
[1770449946400,8.04670469,2019.3,2017.9,1.23891173]
[1770449946629,6.8086519,2019.2,2017.8,2.46751325]
[1770449946803,1.01354532,2019.1,2017.8,2.46751325]
[1770449947000,1.69441051,2019.0,2017.8,2.46751325]
[1770449947216,1.01354532,2018.9,2017.8,2.46751325]
[1770449947507,1.01354532,2018.8,2017.8,2.46751325]
[1770449947810,1.01354532,2018.7,2017.8,2.46751325]
[1770449948011,0.68086519,2019.0,2017.8,2.46751325]
[1770449948207,1.01402425,2018.9,2017.8,2.46751325]
[1770449948534,2.25238367,2018.8,2018.0,1.23885034]
[1770449948718,1.01402425,2018.7,2018.0,1.23885034]
[1770449948922,1.23835942,2018.8,2018.0,1.23885034]
[1770449949124,1.01176688,2018.7,2018.0,1.23885034]
[1770449949306,1.23835942,2018.8,2018.0,1.23885034]
[1770449949506,1.63089594,2018.7,2018.0,1.23885034]
[1770449949804,0.61916634,2018.7,2018.0,1.23885034]
[1770449950405,6.98948273,2018.8,2017.6,0.001]
[1770449950607,6.98948273,2018.8,2016.6,0.001]
[1770449950608,5.75112331,2018.0,2016.6,0.001]
[1770449950815,17.6482112,2018.1,2016.9,1.23952262]
[1770449950816,7.68161982,2017.9,2016.9,1.23952262]
[1770449951019,1.01271553,2017.8,2016.9,1.23952262]
[1770449951223,0.81538098,2017.9,2017.0,6.52168794]
[1770449951506,5.05583768,2018.9,2017.2,5.9577871]
[1770449951829,1.91940859,2018.7,2017.3,5.9577871]
[1770449952131,0.78326519,2019.0,2017.3,5.9577871]
[1770449952132,1.23854347,2018.5,2017.3,1.23926659]
[1770449952437,1.01290381,2018.4,2017.3,1.23926659]
[1770449952733,1.01290381,2018.3,2017.2,1.2393111]
[1770449953037,1.01290381,2018.2,2017.2,1.23930756]
[1770449953353,1.01290381,2018.2,2016.5,0.05588493]
[1770449953354,6.76402712,2018.1,2016.6,4.95964421]
[1770449953513,6.76402712,2018.0,2016.8,1.23958282]
[1770449953708,1.68930652,2017.9,2016.8,0.6199409]
[1770449953904,1.68930652,2017.9,2016.6,1.2406761]
[1770449953905,1.01290381,2017.8,2016.6,1.2406761]
[1770449954132,1.01290381,2017.7,2016.6,0.001]
[1770449954417,1.01290381,2017.6,2016.8,1.23958191]
[1770449954616,1.01290381,2017.5,2016.7,1.23961169]
[1770449954904,1.23903508,2017.7,2017.5,0.001]
[1770449955124,5.75112331,2017.5,2016.6,0.001]
[1770449955330,1.01036617,2017.4,2016.6,0.001]
[1770449955680,5.75112331,2017.5,2016.6,0.001]
[1770449955681,1.01036617,2017.3,2016.6,0.001]
[1770449955929,5.75112331,2017.5,2017.3,0.001]
[1770449956127,1.23928022,2017.3,2016.6,0.001]
[1770449956333,1.87628599,2017.4,2016.6,0.001]
[1770449958336,1.9153539,2017.9,2016.6,5.90290217]
[1770449958512,1.23895119,2017.9,2016.6,5.90290217]
[1770449960117,10.70677026,2018.1,2016.8,5.90190217]
[1770449960118,1.23882737,2018.1,2016.8,5.90190217]
[1770449960463,1.23882737,2018.1,2016.9,1.239526]
[1770449960749,1.86846569,2018.1,2017.0,1.20995322]
[1770449960918,1.23876934,2018.2,2017.0,1.20995322]
[1770449961126,0.71294829,2018.1,2017.0,1.20995322]
[1770449961648,0.71294829,2018.1,2017.0,7.11185539]
[1770449961855,0.71294829,2018.1,2017.0,1.20995322]
[1770449962050,6.4640716,2018.1,2017.0,1.20995322]
[1770449962248,1.23891173,2017.9,2016.7,4.95855052]
[1770449962449,0.52632144,2017.8,2016.6,1.2406744]
[1770449962650,5.75112331,2017.7,2016.6,0.001]
[1770449962854,7.33827432,2017.6,2016.6,0.001]
[1770449963029,7.28238939,2017.5,2016.6,0.001]
[1770449963232,7.01127218,2017.4,2016.6,0.001]
[1770449963454,0.52632144,2017.3,2016.6,0.001]
[1770449964640,1.23934166,2017.2,2016.6,0.001]
[1770449964838,11.44202995,2017.4,2016.6,0.001]
[1770449964839,0.52632144,2017.1,2016.6,0.001]
[1770449966055,1.23901467,2017.8,2016.6,0.001]
[1770449966255,0.34005558,2017.6,2016.6,5.90290217]
[1770449966467,0.34005558,2017.6,2016.7,0.59587871]
[1770449966773,0.34005558,2017.6,2016.8,1.23958746]
[1770449967943,0.27954415,2017.6,2017.0,5.90190217]
[1770449968538,0.27954415,2017.6,2017.1,1.2394031]
[1770449968734,1.238765,2018.2,2017.1,1.2394031]
[1770449968965,0.002,2017.7,2017.2,1.20989177]
[1770449969459,0.002,2017.7,2017.0,1.23946063]
[1770449969659,0.002,2017.7,2017.0,7.1413628]
[1770449970574,0.002,2017.7,2017.2,1.23934166]
[1770449971072,0.002,2017.7,2016.8,5.01502568]
[1770449971073,0.002,2017.7,2016.9,4.95808991]
[1770449971237,0.002,2017.7,2017.1,1.23940278]
[1770449971439,0.002,2017.7,2017.1,1.85911276]
[1770449971656,0.002,2017.7,2017.1,0.61970998]
[1770449971868,0.002,2017.7,2017.1,1.85911211]
[1770449973966,0.002,2017.7,2017.1,0.61970998]
[1770449974185,0.002,2017.7,2016.8,0.001]
[1770449974477,1.01062351,2017.6,2016.8,0.001]
[1770449974680,1.01062351,2017.5,2016.8,0.001]
[1770449974882,5.75312331,2017.7,2016.8,0.001]
[1770449974883,0.002,2017.7,2016.8,0.001]
[1770449975050,1.01077076,2017.6,2016.8,0.001]
[1770449975253,1.01077076,2017.5,2016.8,0.001]
[1770449975453,0.002,2017.7,2016.8,0.001]
[1770449975697,1.0110291,2017.6,2016.8,0.001]
[1770449975853,1.0110291,2017.5,2016.8,0.001]
[1770449976054,0.002,2017.7,2016.8,0.001]
[1770449976267,1.01102034,2017.6,2016.8,0.001]
[1770449976495,1.01102034,2017.5,2016.8,0.001]
[1770449976659,1.01102034,2017.4,2016.8,0.001]
[1770449976856,0.002,2017.7,2016.8,0.001]
[1770449977172,1.01197109,2017.6,2016.8,0.001]
[1770449977363,0.002,2017.7,2016.8,0.001]
[1770449977364,1.01197109,2017.5,2016.8,0.001]
[1770449977562,1.01197109,2017.4,2016.8,0.001]
[1770449977781,0.002,2017.7,2016.8,0.001]
[1770449978077,1.01254814,2017.6,2016.8,0.001]
[1770449978382,1.01254814,2017.5,2016.8,0.001]
[1770449978557,1.01254814,2017.4,2016.8,0.001]
[1770449978768,1.01254814,2017.3,2016.8,0.001]
[1770449978959,5.56641099,2017.7,2016.8,0.001]
[1770449979159,1.23915737,2017.5,2016.8,0.001]
[1770449979372,1.0129987,2017.4,2016.8,0.001]
[1770449979554,0.002,2017.7,2016.8,0.001]
[1770449979754,1.01387647,2017.6,2016.8,0.001]
[1770449979967,1.01387647,2017.5,2016.8,0.001]
[1770449980162,0.002,2017.7,2016.8,0.001]
[1770449980982,0.002,2017.7,2016.8,5.78156256]
[1770449981196,0.002,2017.7,2017.0,1.23946455]
[1770449981880,0.002,2017.9,2017.0,7.02002711]
[1770449982270,0.002,2017.9,2017.0,1.23946455]
[1770449983178,0.002,2017.9,2017.0,7.02002711]
[1770449986385,0.002,2017.9,2017.1,0.05588493]
[1770449986587,0.002,2017.9,2017.2,5.78056256]
[1770449986786,0.34148422,2018.6,2017.3,5.78056256]
[1770449987364,0.34148422,2018.6,2017.4,7.01978135]
[1770449987562,0.34148422,2018.6,2017.5,5.78056256]
[1770449989300,1e-08,2018.8,2018.0,5.78056256]
[1770449989520,1e-08,2018.8,2018.2,5.78056256]
[1770449989873,1e-08,2018.8,2017.8,1.23894022]
[1770449990075,1e-08,2018.8,2017.8,7.01950278]
[1770449990381,0.34322272,2019.4,2018.1,5.78056256]
[1770449990572,0.34322272,2019.4,2018.4,5.78056256]
[1770449990773,0.34322272,2019.4,2018.5,8.12343994]
[1770449991076,0.34322272,2019.4,2018.5,5.78056256]
[1770449991273,0.34322272,2019.4,2018.6,7.01904467]
[1770449992117,0.002,2019.7,2019.1,5.83644749]
[1770449992401,0.002,2020.3,2019.1,5.83644749]
[1770449992804,0.002,2020.3,2019.5,5.78056256]
[1770449993101,0.002,2020.8,2019.4,0.05588493]
[1770449993102,0.002,2020.8,2019.7,5.78056256]
[1770449993305,0.002,2020.8,2019.8,1.23774631]
[1770449995675,0.002,2020.8,2019.8,7.01830887]
[1770449997211,0.002,2020.8,2020.0,5.78056256]
[1770449997411,0.002,2020.8,2020.2,1.23750123]
[1770449998622,0.002,2020.8,2020.2,7.01806379]
[1770450001128,0.002,2021.4,2020.2,7.01806379]
[1770450001129,1e-08,2021.5,2020.4,5.78056256]
[1770450001623,1e-08,2021.5,2020.6,5.78056256]
[1770450001927,1e-08,2021.5,2020.9,1.23707259]
[1770450002133,1e-08,2021.5,2020.9,7.01763515]
[1770450002330,0.33814597,2022.5,2021.4,5.83644749]
[1770450002504,7.82340914,2024.4,2021.4,5.83644749]
[1770450002505,21.81773034,2023.9,2022.2,5.78056256]
[1770450002822,4.94014852,2024.3,2022.5,5.83644749]
[1770450002823,1.23505582,2024.2,2022.5,5.83644749]
[1770450003025,0.49401485,2024.2,2022.6,2.20897668]
[1770450003196,0.49401485,2024.2,2022.7,5.78056256]
[1770450003398,0.49401485,2024.2,2022.9,5.78056256]
[1770450003725,0.34766484,2024.3,2023.3,5.78056256]
[1770450003937,0.34766484,2024.3,2023.4,1.23554413]
[1770450004606,0.34766484,2024.3,2023.3,1.23559991]
[1770450004808,7.14707877,2024.3,2023.3,1.23560272]
[1770450005031,1.2087058,2024.2,2023.3,1.13560272]
[1770450005227,0.34766484,2024.3,2023.3,1.13560272]
[1770450005427,0.34766484,2024.3,2023.3,6.97205021]
[1770450005765,0.18432,2026.5,2023.3,6.97205021]
[1770450005766,0.1246655,2026.3,2024.9,5.78056256]
[1770450005937,0.1246655,2026.3,2025.5,0.25774316]
[1770450006248,1.23304562,2027.5,2025.8,5.73503685]
[1770450006529,1.23304562,2027.5,2025.6,16.25331935]
[1770450006530,0.05588493,2027.2,2025.6,16.25331935]
[1770450006832,0.05588493,2027.2,2025.5,0.25774316]
[1770450006833,0.05588493,2026.3,2025.5,0.25774316]
[1770450007031,0.05588493,2026.0,2025.5,0.25774316]
[1770450007198,0.05588493,2026.8,2024.2,0.1024]
[1770450007199,0.002,2025.2,2024.9,1.23462692]
[1770450007406,1.49041918,2027.6,2025.2,5.73503685]
[1770450007705,0.05588493,2027.5,2025.8,5.73503685]
[1770450007901,1.28894555,2027.5,2026.0,5.73503685]
[1770450008228,7.1916179,2027.5,2025.9,1.23401944]
[1770450008535,0.00588493,2027.5,2025.9,6.96905629]
[1770450008735,1.23305243,2027.5,2025.9,6.96905629]
[1770450008945,1.23305243,2027.5,2026.0,1.19051341]
[1770450008946,0.62211199,2027.4,2026.0,1.19051341]
[1770450009103,0.05588493,2026.9,2026.0,1.19051341]
[1770450009298,0.62211199,2027.4,2025.8,1.23406868]
[1770450009538,0.62211199,2027.4,2025.9,5.47361743]
[1770450009735,22.13470693,2029.6,2027.4,0.05588493]
[1770450010041,4.14168012,2031.5,2028.8,5.47361743]
[1770450010042,0.59928617,2029.5,2028.8,5.47361743]
[1770450010246,0.1246655,2030.3,2029.6,0.05588493]
[1770450010406,1.47266558,2030.7,2029.4,0.05588493]
[1770450010606,1.47266558,2030.7,2028.9,0.05588493]
[1770450010607,6.31820061,2030.6,2028.9,0.05588493]
[1770450010814,0.63968589,2030.6,2028.6,5.47361743]
[1770450011100,0.1024,2030.5,2028.7,5.52950236]
[1770450011301,0.1024,2030.5,2027.8,5.16477992]
[1770450011302,0.1024,2030.0,2027.9,1.28868733]
[1770450011503,5.67851472,2030.1,2028.3,0.05588493]
[1770450011748,0.24154519,2030.7,2029.2,5.47361743]
[1770450012064,4.92152141,2031.9,2029.2,5.47361743]
[1770450012065,5.67851472,2031.8,2029.7,16.51207714]
[1770450012252,0.33343908,2032.3,2030.5,0.05588493]
[1770450012425,0.33343908,2032.3,2030.1,0.05588493]
[1770450012426,6.0119538,2032.3,2030.1,0.05588493]
[1770450012632,6.0119538,2032.3,2029.5,1.2318305]
[1770450012633,22.19059186,2031.6,2029.5,1.2318305]
[1770450012868,16.45619221,2031.5,2029.5,1.2318305]
[1770450013155,5.67851472,2031.6,2029.5,1.2318305]
[1770450013354,5.67851472,2031.4,2029.6,0.05588493]
[1770450013569,0.33343908,2032.3,2029.6,0.05588493]
[1770450013570,0.33343908,2032.3,2030.3,5.52950236]
[1770450013730,0.33343908,2032.3,2030.0,0.1024]
[1770450013731,2.01240221,2032.3,2030.4,6.02656767]
[1770450014060,2.01240221,2032.3,2030.4,0.55295024]
[1770450014061,0.05588493,2032.1,2030.4,0.55295024]
[1770450014364,0.33343908,2032.3,2030.7,5.47361743]
[1770450014549,1.56358352,2032.3,2030.7,5.47361743]
[1770450014853,0.33343908,2032.3,2030.9,5.52950236]
[1770450015056,0.05588493,2032.0,2030.3,5.47361743]
[1770450015263,1.56359143,2032.3,2029.5,0.1024]
[1770450015264,0.05588493,2031.6,2029.5,0.1024]
[1770450015430,0.05588493,2031.6,2028.6,0.05588493]
[1770450015431,0.05588493,2030.7,2029.2,1.23200651]
[1770450015634,0.05588493,2031.0,2028.8,5.47361743]
[1770450015950,0.05588493,2031.0,2028.4,1.23249852]
[1770450015951,1.23134512,2030.3,2028.4,1.23249852]
[1770450016154,0.05588493,2030.0,2028.3,6.70615211]
[1770450016451,5.67851472,2029.4,2027.2,5.47361743]
[1770450016631,0.05588493,2029.6,2027.9,1.23278257]
[1770450016963,1.23134512,2030.3,2028.3,1.23254342]
[1770450017158,7.38001887,2030.0,2028.3,1.23253633]
[1770450017330,7.38001887,2030.0,2028.3,1.23254285]
[1770450017530,0.1024,2029.9,2028.3,1.23254946]
[1770450017731,5.67851472,2029.9,2028.3,1.23254946]
[1770450017971,6.9097723,2030.5,2028.6,0.05588493]
[1770450018173,1.18346676,2030.4,2028.6,0.05588493]
[1770450018460,5.91208502,2030.0,2028.0,1.23274161]
[1770450018646,5.67851472,2029.8,2028.2,0.05588493]
[1770450019161,0.002,2030.2,2028.5,0.05588493]
[1770450019461,0.05588493,2030.1,2028.2,5.47361743]
[1770450019673,0.05588493,2030.1,2027.9,1.23279922]
[1770450019674,16.45619221,2029.6,2027.9,1.23279922]
[1770450019842,16.45619221,2029.6,2027.8,4.93120962]
[1770450020046,1.2318305,2029.5,2027.7,4.93120962]
[1770450020242,1.23173455,2029.7,2027.7,10.40482705]
[1770450020454,6.91024927,2029.7,2027.7,4.98709455]
[1770450020671,1.1836889,2029.6,2028.0,5.52950236]
[1770450020875,1.23152709,2030.0,2028.3,0.05588493]
[1770450021176,1.23152709,2030.0,2028.0,5.52950236]
[1770450021363,3.447,2029.9,2028.0,5.52950236]
[1770450021942,0.05588493,2029.5,2028.0,1.23274161]
[1770450022276,0.2335703,2029.1,2027.9,0.5]
[1770450022444,5.73439965,2028.6,2026.4,5.47361743]
[1770450022780,0.2335703,2028.2,2026.5,2.69207194]
[1770450023076,5.73439965,2028.3,2026.6,0.05588493]
[1770450023077,5.67851472,2028.3,2026.6,0.05588493]
[1770450023372,5.91208502,2028.2,2026.9,1.23338021]
[1770450023577,5.91208502,2028.0,2026.2,0.05588493]
[1770450023762,5.96796995,2027.8,2026.3,1.23377584]
[1770450023951,5.91208502,2027.8,2026.3,1.23377584]
[1770450024270,1.2329848,2027.6,2025.9,4.93596128]
[1770450024476,1.82414838,2027.7,2026.4,0.05588493]
[1770450024780,1.82414838,2027.7,2025.9,4.93596128]
[1770450024781,5.91208502,2027.5,2025.9,4.93596128]
[1770450024982,5.67851472,2027.5,2025.9,1.23401944]
[1770450025195,0.56785147,2027.4,2026.1,0.05588493]
[1770450025679,0.56785147,2027.4,2025.9,1.23401944]
[1770450025845,5.91208502,2027.3,2025.9,1.23401944]
[1770450026050,1.23322809,2027.2,2025.8,4.93623409]
[1770450026287,0.2335703,2027.1,2025.8,1.23408036]
[1770450026465,0.2335703,2027.1,2024.7,4.93879022]
[1770450026466,5.83679965,2026.6,2024.6,4.9950216]
[1770450026653,5.67851472,2026.6,2025.0,4.93817524]
[1770450026978,17.66400488,2027.1,2025.7,1.2341286]
[1770450026979,6.88632739,2027.1,2025.7,1.2341286]
[1770450027277,6.88632739,2027.1,2025.7,1.29001353]
[1770450027650,1.20781267,2027.1,2025.7,1.29001353]
[1770450027844,1.80097738,2027.4,2026.0,0.05588493]
[1770450028083,1.80097338,2027.4,2026.0,0.05588493]
[1770450028299,0.56785147,2027.4,2026.1,1.23389763]
[1770450028748,1.8009878,2027.4,2026.1,1.23389763]
[1770450028947,1.80097,2027.4,2026.1,1.23389763]
[1770450029149,0.56785147,2027.4,2026.1,2.34999399]
[1770450029378,1.23302253,2027.6,2026.1,2.34999399]
[1770450029677,0.5912085,2027.7,2026.3,0.05588493]
[1770450029856,5.67851472,2028.1,2026.6,0.05588493]
[1770450030198,4.98531322,2028.7,2026.6,0.05588493]
[1770450030199,1.232377,2028.6,2026.8,1.23347148]
[1770450030363,0.05588493,2029.2,2026.8,1.23347148]
[1770450030364,6.9105668,2029.2,2027.3,0.05588493]
[1770450030547,0.05588493,2028.9,2027.0,5.52950236]
[1770450030858,1.18385665,2029.1,2027.6,0.05588493]
[1770450031048,5.67851472,2029.4,2027.4,0.05588493]
[1770450031049,16.45619221,2029.4,2027.4,0.05588493]
[1770450031249,5.73439965,2029.3,2026.8,1.23347148]
[1770450031450,0.1024,2029.2,2027.3,0.05588493]
[1770450031873,0.1024,2029.2,2027.5,0.001]
[1770450032063,4.92694132,2029.7,2027.9,0.05588493]
[1770450032273,0.05588493,2029.4,2028.0,1.23274161]
[1770450032485,16.45619221,2029.0,2027.6,1.23298133]
[1770450032784,5.67851472,2029.1,2028.0,1.23274161]
[1770450033080,5.67851472,2029.0,2027.5,0.001]
[1770450033247,0.1024,2028.9,2027.5,0.001]
[1770450033452,0.1024,2028.7,2027.5,0.001]
[1770450033650,0.05588493,2028.6,2027.5,0.001]
[1770450033850,0.6339764,2028.9,2027.9,1.23279048]
[1770450033851,0.57809147,2028.9,2027.9,1.23279048]
[1770450034047,4.98320693,2029.9,2027.9,17.74486762]
[1770450034048,1.18371652,2029.6,2027.9,17.74486762]
[1770450034286,5.67851472,2029.9,2027.9,1.28867541]
[1770450034287,10.60559394,2029.8,2027.9,1.28867541]
[1770450034454,1.23353415,2030.0,2028.0,5.47361743]
[1770450034661,1.23353415,2030.0,2027.9,17.74486762]
[1770450034662,0.002,2030.0,2028.5,5.52950236]
[1770450034859,0.002,2030.0,2028.8,5.52950236]
[1770450035056,0.002,2030.2,2029.1,5.52950236]
[1770450035391,0.002,2030.2,2029.5,21.92980964]
[1770450035574,4.45476397,2032.7,2030.1,5.52950236]
[1770450035575,7.24210788,2032.3,2030.1,5.52950236]
[1770450035781,7.24210788,2032.3,2030.4,0.05588493]
[1770450035991,23.75418502,2032.3,2030.1,5.52950236]
[1770450036161,6.62390789,2031.9,2030.1,0.05588493]
[1770450036362,16.45619221,2031.6,2029.7,0.05588493]
[1770450036561,16.45619221,2031.6,2029.2,0.55295024]
[1770450036562,0.1024,2031.2,2029.2,0.55295024]
[1770450036864,5.39353238,2031.8,2030.2,1.23134749]
[1770450037164,4.09767006,2032.2,2031.0,0.05588493]
[1770450037364,0.33343908,2032.3,2031.1,0.05588493]
[1770450037556,1.56359427,2032.3,2031.1,0.05588493]
[1770450037759,0.33343908,2032.3,2031.4,0.05588493]
[1770450037988,0.33343908,2032.3,2031.1,0.05588493]
[1770450037989,1.555,2034.1,2032.2,0.05588493]
[1770450038322,8.28336024,2035.0,2032.0,1.23031496]
[1770450038323,1.56567904,2033.9,2032.0,1.23031496]
[1770450038592,1.56567904,2033.9,2032.6,5.47885531]
[1770450038593,0.33648411,2033.9,2032.6,5.47885531]
[1770450038763,0.33648411,2033.9,2032.1,5.47885531]
[1770450038764,1.56565467,2033.9,2032.1,5.47885531]
[1770450038959,1.56565467,2033.9,2032.0,2.88548396]
[1770450038960,21.84972459,2033.6,2032.0,2.88548396]
[1770450039157,1.56565329,2033.9,2031.1,4.92321021]
[1770450039158,21.84972459,2033.2,2031.1,4.92321021]
[1770450039357,0.05588493,2033.1,2030.9,5.47885531]
[1770450039587,5.44941731,2032.8,2030.5,16.45619221]
[1770450039787,5.49593238,2032.2,2030.3,1.23134499]
[1770450039987,0.1024,2032.3,2030.7,0.05588493]
[1770450040208,5.39353238,2033.7,2031.2,0.1024]
[1770450040411,0.57268984,2033.6,2031.6,0.05588493]
[1770450040712,0.05588493,2032.7,2030.3,10.40407936]
[1770450040913,5.39353238,2032.1,2030.5,0.02142937]
[1770450041065,5.62710268,2032.3,2030.3,0.05588493]
[1770450041262,5.44941731,2031.8,2029.5,4.92710753]
[1770450041463,5.44941731,2031.8,2029.8,1.23159684]
[1770450041464,0.05588493,2031.2,2029.8,1.23159684]
[1770450041658,0.1024,2031.3,2029.1,0.05588493]
[1770450041891,2.21391798,2031.7,2029.5,0.05588493]
[1770450042114,0.2335703,2031.4,2029.6,0.5]
[1770450042390,0.2335703,2031.4,2029.5,0.05588493]
[1770450042391,6.6243925,2031.1,2029.3,1.2319519]
[1770450042592,5.72950268,2031.0,2029.2,1.23201184]
[1770450042892,5.39353238,2030.8,2029.2,1.2320047]
[1770450043191,4.92342254,2031.2,2029.5,0.05588493]
[1770450043192,1.23081522,2031.2,2029.5,0.05588493]
[1770450043400,1.23074753,2031.3,2029.5,0.05588493]
[1770450043602,1.15472357,2031.2,2029.5,0.05588493]
[1770450044113,1.15472357,2031.2,2029.8,0.05588493]
[1770450044275,1.23037551,2031.9,2030.0,1.23152709]
[1770450044471,0.1024,2031.8,2030.0,1.23152709]
[1770450044676,5.39353238,2031.7,2030.0,1.23152709]
[1770450044877,5.39353238,2032.3,2030.5,0.05588493]
[1770450045198,1.22989127,2032.7,2030.8,0.05588493]
[1770450045398,2.01780843,2032.6,2031.1,0.05588493]